Cogmind - Beta 10.2 @@@ ROGUE MODE // 2020.11.03 @ 00:44:22 Player: Whismirk Result: Self-destructed Performance ------------- Evolutions (1) 500 Regions Visited (3) 600 Robots Destroyed (17) 85 Value Destroyed (404) 404 Prototype IDs (2) 40 Alien Tech Used (0) 0 Bonus (0) 0 TOTAL SCORE: 1629 Bonus ------- None Cogmind --------- Core Integrity 163/400 Matter 233/300 Energy 100/100 System Corruption 0% Temperature Cool (0) Movement Core (550) Ox10 Location -9/Materials Parts ------- > --- POWER (1) -------- (None) > --- PROPULSION (4) --- (None) > --- UTILITY (2) ------ High-capacity Storage Unit Power Shielding > --- WEAPON (2) ------- (None) > --- INVENTORY (12) --- Improved Ion Engine Improved Heat Sink Visual Processing Unit Improved Sensor Array Signal Interpreter Terrain Scan Processor Targeting Computer Targeting Computer Field Recycling Unit (0) Peak State ------------ > --- POWER ------------ Light Nuclear Core > --- PROPULSION ------- Aluminum Leg Aluminum Leg Aluminum Leg Aluminum Leg > --- UTILITY ---------- High-capacity Storage Unit Power Shielding > --- WEAPON ----------- Light Assault Rifle Light Assault Rifle > --- INVENTORY -------- Improved Ion Engine Aluminum Leg Improved Heat Sink Visual Processing Unit Improved Sensor Array Signal Interpreter Terrain Scan Processor Field Recycling Unit Light Assault Rifle Rocket Launcher Mining Laser Welding Torch [Rating: 13] Favorites ----------- Power Light Nuclear Core Engine Light Ion Engine Power Core Light Nuclear Core Propulsion Aluminum Leg Leg Aluminum Leg Flight Unit Flight Unit Utility High-capacity Storage Unit Device Heat Sink Storage High-capacity Storage Unit Protection Power Shielding Weapon Light Assault Rifle Energy Gun Small Laser Ballistic Gun Light Assault Rifle Launcher Rocket Launcher Build | -11 -10 -10 -9 ------- Run | Scr Mat Min Mat Slots Evolved 2 | . . . 2 Power . | . . . . Propulsion 2 | . . . 2 Utility . | . . . . Weapon . | . . . . Parts Attached 27 | 7 6 2 12 Power 4 | 1 1 . 2 Engine 2 | 1 . . 1 Core 2 | . 1 . 1 Reactor . | . . . . Propulsion 10 | 2 1 . 7 Treads . | . . . . Leg 8 | 2 1 . 5 Wheel . | . . . . Hover . | . . . . Flight 2 | . . . 2 Utility 4 | 1 3 . . Device 2 | 1 1 . . Storage 1 | . 1 . . Processor . | . . . . Hackware . | . . . . Protection 1 | . 1 . . Artifact . | . . . . Weapon 9 | 3 1 2 3 Energy Gun 3 | 1 1 . 1 Energy Cannon . | . . . . Ballistic Gun 5 | 2 . 2 1 Ballistic Cannon . | . . . . Launcher 1 | . . . 1 Special Weapon . | . . . . Impact Weapon . | . . . . Slashing Weapon . | . . . . Piercing Weapon . | . . . . Special Melee Weapon . | . . . . Unidentified Prototypes . | . . . . Parts Lost 9 | . . . 9 Power 1 | . . . 1 Propulsion 4 | . . . 4 Utility . | . . . . Weapon 4 | . . . 4 Highest Loss Streak 7 | . . . 7 Average Slot Usage (%) 75 | . 99 100 51 Engine 2 | . 5 . . Core 6 | . 8 14 3 Leg 21 | . 28 28 15 Device 4 | . 11 . . Storage 12 | . 13 14 11 Protection 8 | . 2 14 11 Energy Gun 7 | . 14 11 1 Ballistic Gun 11 | . 14 16 7 Naked Turns . | . . . . Heaviest Build 41 | 7 41 40 40 Greatest Support 40 | 20 20 20 40 Greatest Overweight (x) 13 | . 2 1 13 Average Overweight (x) . | . . 1 1 Largest Inventory Capacity 12 | 4 12 12 12 Average Capacity 11 | 4 11 12 12 Most Carried 12 | 4 12 12 12 Average Carried 8 | 2 8 11 9 Final Capacity 12 | 4 12 12 12 Final Carried 12 | 4 11 12 9 Class Distribution -------------------- 67% | Mutant 32% | Scavenger-Mutant Dominant Class ---------------- Mutant | -10/Materials Mutant | -10/Mines Mutant | -9/Materials Resources | -11 -10 -10 -9 ----------- Run | Scr Mat Min Mat Matter Collected 473 | 271 84 20 98 Remotely . | . . . . Salvage Created 510 | 35 214 . 261 Parts 44 | 2 20 . 22 Haulers Intercepted . | . . . . Recyclers Shooed 3 | . 2 . 1 Parts Field Recycled . | . . . . Retrieved Matter . | . . . . Parts Self-Destructed . | . . . . Prevented . | . . . . Kills | -11 -10 -10 -9 ------- Run | Scr Mat Min Mat Combat Hostiles Destroyed 14 | 1 4 . 9 Guns 11 | . 4 . 7 AOE 3 | 1 . . 2 Classes Destroyed 5 | 1 3 . 1 Recycler 1 | . 1 . . Watcher 2 | . 1 . 1 Swarmer 6 | . 2 . 4 Grunt 7 | 1 2 . 4 Sentry 1 | . . . 1 Best Kill Streak 7 | 1 2 . 7 Combat Bots Only 6 | 1 2 . 6 Max Kills in Single Turn 2 | 1 1 . 2 Gunslinging . | . . . . Exploded 2 | 1 . . 2 Melee . | . . . . Uniques/NPCs Destroyed . | . . . . Combat | -11 -10 -10 -9 -------- Run | Scr Mat Min Mat Damage Taken 1273 | 11 215 . 1047 Core 277 | . 40 . 237 Absorbed by Shields . | . . . . Core Remaining (%) 92 | 100 . 84 . Volleys Fired 55 | 1 26 . 28 Largest 2 | 2 2 . 2 Hottest 98 | 60 60 . 98 Shots Fired 100 | 2 49 . 49 Gun 95 | 2 49 . 44 Cannon . | . . . . Launcher 5 | . . . 5 Special . | . . . . Kinetic 63 | 1 24 . 38 Thermal 24 | . 18 . 6 Explosive 5 | . . . 5 Electromagnetic 8 | 1 7 . . Robot Hit Streak 6 | 2 5 . 6 Robot Miss Streak 4 | . 4 . 2 Penetration Max . | . . . . Secondary Targets 4 | . 1 . 3 Max Gunslinging Chain 1 | . 1 . 1 Shots Hit Robots 55 | 2 26 . 27 Core Hits 32 | 1 12 . 19 Critical Hits 1 | . . . 1 Critical Kills . | . . . . Critical Parts Destroyed 1 | . . . 1 Melee Attacks . | . . . . Impact . | . . . . Slashing . | . . . . Piercing . | . . . . Sneak Attacks . | . . . . Combat Hostiles . | . . . . Follow-up Attacks . | . . . . Damage Inflicted 672 | 57 235 . 380 Guns 466 | 15 235 . 216 Cannons . | . . . . Explosions 206 | 42 . . 164 Melee . | . . . . Ramming . | . . . . Kinetic 208 | . 68 . 140 Thermal 222 | 42 104 . 76 Explosive 164 | . . . 164 Electromagnetic 78 | 15 63 . . Impact . | . . . . Slashing . | . . . . Piercing . | . . . . Highest Corruption . | . . . . Average Corruption . | . . . . Corruption Purged . | . . . . Overload Shots . | . . . . Overflow Damage 4 | . . . 4 Projectiles . | . . . . Explosions 4 | . . . 4 Melee . | . . . . Knockbacks . | . . . . Impact . | . . . . Kinetic . | . . . . Secondary . | . . . . Self-Inflicted Damage 39 | . . . 39 Shots 2 | . . . 2 Rammed 1 | . . . 1 Targets Rammed 1 | . . . 1 Kicked . | . . . . Crushed . | . . . . Highest Temperature 53 | 20 53 . 32 Average Temperature 17 | 15 22 . 12 Received Heat Transfer 402 | 6 87 . 309 Siege Activations . | . . . . Robots Corrupted . | . . . . Combat Hostiles . | . . . . Parts Fried . | . . . . Impact Corruptions . | . . . . Robots Melted . | . . . . Combat Hostiles . | . . . . Parts Melted . | . . . . Heat Transferred 460 | 50 225 . 185 Parts Sabotaged . | . . . . Parts Stolen . | . . . . Parts Stripped . | . . . . Power Chain Reactions 1 | 1 . . . Missiles Intercepted . | . . . . Alert | -11 -10 -10 -9 ------- Run | Scr Mat Min Mat Peak Influence 222 | 20 143 2 222 Initial 13 | . 13 2 . Average 39 | 5 37 2 56 Maximum Alert Level 1 | . . . 1 Low Security (%) 98 | 100 100 100 97 Level 1 1 | . . . 2 Level 2 . | . . . . Level 3 . | . . . . Level 4 . | . . . . Level 5 . | . . . . High Security . | . . . . Max Security . | . . . . Squads Dispatched 1 | . . . 1 Investigation 1 | . . . 1 Extermination . | . . . . Reinforcement . | . . . . Assault . | . . . . Garrison . | . . . . Intercept . | . . . . Construction Impeded . | . . . . Haulers Reinforced . | . . . . Stealth | -11 -10 -10 -9 --------- Run | Scr Mat Min Mat Distress Signals . | . . . . Communications Jammed . | . . . . Distress Signals . | . . . . Times Spotted 27 | 1 11 . 15 Peak Tracking Total 6 | 1 4 . 6 Tactical Retreats 4 | . 2 . 2 Traps | -11 -10 -10 -9 ------- Run | Scr Mat Min Mat Traps Triggered . | . . . . Indirectly . | . . . . Trap Hack Attempts . | . . . . Triggered . | . . . . Disarmed . | . . . . Reprogrammed . | . . . . Reused . | . . . . Traps Extracted . | . . . . Installed . | . . . . Triggered . | . . . . Machines | -11 -10 -10 -9 ---------- Run | Scr Mat Min Mat Machines Disabled 1 | . . . 1 Max in Single Turn 1 | . . . 1 Machines Sabotaged . | . . . . Garrisons Compromised . | . . . . Overloaded Fab Kills . | . . . . Fab Network Shutdowns . | . . . . Hacking | -11 -10 -10 -9 --------- Run | Scr Mat Min Mat Machines Accessed 3 | . . . 3 Terminals 2 | . . . 2 Fabricators . | . . . . Repair Stations . | . . . . Recycling Units 1 | . . . 1 Scanalyzers . | . . . . Garrison Access . | . . . . Total Hacks 9 | . . . 9 Successful 5 | . . . 5 Failed 4 | . . . 4 Catastrophic . | . . . . Database Lockouts . | . . . . Manual . | . . . . Terminals 5 | . . . 5 Fabricators . | . . . . Repair Stations . | . . . . Recycling Units 4 | . . . 4 Scanalyzers . | . . . . Garrison Access . | . . . . Terminal Hacks 3 | . . . 3 Record 1 | . . . 1 Prototype ID Bank 1 | . . . 1 Zone Layout 1 | . . . 1 Fabricator Hacks . | . . . . Repair Station Hacks . | . . . . Recycling Unit Hacks 2 | . . . 2 Process 1 | . . . 1 Retrieve Components 1 | . . . 1 Scanalyzer . | . . . . Garrison Access Hacks . | . . . . Unauthorized Hacks . | . . . . Terminals . | . . . . Fabricators . | . . . . Repair Stations . | . . . . Recycling Units . | . . . . Scanalyzers . | . . . . Garrison Access . | . . . . Data Cores Recovered . | . . . . Used . | . . . . Hacking Detections 3 | . . . 3 Full Trace Events 1 | . . . 1 Feedback Events . | . . . . Feedback Blocked . | . . . . Robot Schematics Acquired . | . . . . Robots Built . | . . . . Matter . | . . . . Time . | . . . . Total Robot Build Rating . | . . . . Part Schematics Acquired . | . . . . Parts Built . | . . . . Matter . | . . . . Time . | . . . . Total Part Build Rating . | . . . . Parts Repaired . | . . . . Time . | . . . . Parts Recycled . | . . . . Recycled Matter . | . . . . Retrieved Matter . | . . . . Retrieved Components . | . . . . Parts Scanalyzed . | . . . . Part Schematics Acquired . | . . . . Parts Damaged . | . . . . Bothacking | -11 -10 -10 -9 ------------ Run | Scr Mat Min Mat Used RIF Installer . | . . . . Robots Hacked . | . . . . Non-combat . | . . . . Combat . | . . . . Robot Hacks Applied . | . . . . Relay Couplers Released . | . . . . Robots Rewired . | . . . . Allies Hacked . | . . . . Hacks Repelled . | . . . . Allies | -11 -10 -10 -9 -------- Run | Scr Mat Min Mat Total Allies . | . . . . Largest Group . | . . . . Highest-Rated Group . | . . . . Highest-Rated Ally . | . . . . Total Orders . | . . . . Ally Attacks . | . . . . Total Damage . | . . . . Kills . | . . . . Allies Corrupted . | . . . . Allies Melted . | . . . . Intel | -11 -10 -10 -9 ------- Run | Scr Mat Min Mat Robot Analysis Total . | . . . . Derelict Logs Recovered 1 | . . 1 . Drone Launches . | . . . . Drone Recoveries . | . . . . Exploration | -11 -10 -10 -9 ------------- Run | Scr Mat Min Mat Turns Passed 1580 | 99 540 197 744 Spaces Moved 666 | 76 290 126 174 Core 33 | 17 . . 16 Treads . | . . . . Legs 633 | 59 290 126 158 Wheels . | . . . . Hover . | . . . . Flight . | . . . . Fastest Speed 50 | 50 120 150 120 Average Speed 148 | 104 149 150 166 Slowest Speed 700 | 120 180 150 700 Overloaded Moves . | . . . . Propulsion Burnouts . | . . . . Robots Hopped . | . . . . Cave-ins Triggered . | . . . . Exploration Rate (%) 21 | 6 23 40 15 Regions Visited 3 Branch Regions 1 Pre-discovered Areas 1 | . . 1 . Known Exits Taken . | . . . . Unknown Exits Taken 3 | 1 1 1 . Scrap Searched 1 | . . 1 . Spaces Dug 16 | . . . 16 Terrain Destroyed 51 | . . . 51 Melee . | . . . . Projectile . | . . . . AOE 51 | . . . 51 Terrain Rammed . | . . . . Walls Destroyed . | . . . . Machines Disabled . | . . . . Actions | -11 -10 -10 -9 --------- Run | Scr Mat Min Mat Total 1165 | 93 355 135 582 Wait 357 | . 6 2 349 Move 663 | 75 289 125 174 Hop . | . . . . Pick Up 40 | 10 18 3 9 Fast Attach 1 | . . 1 . Attach 13 | 6 1 1 5 Detach . | . . . . Swap 13 | 1 5 . 7 Drop 22 | . 10 3 9 Fire 55 | 1 26 . 28 Melee . | . . . . Ram 1 | . . . 1 Kick . | . . . . Crush . | . . . . Escape Stasis . | . . . . Rewire . | . . . . Trap . | . . . . Miscellaneous . | . . . . Route ------- -11/Scrapyard -10/Materials -10/Mines -9/Materials History --------- Turn | Location | Event 2 | -11/Scrapyard | Met Revision 17 69 | -11/Scrapyard | Discovered new exit (range 8) 100 | -11/Scrapyard | Entered Materials 302 | -10/Materials | Build established: Mutant 377 | -10/Materials | Discovered new exit (range 7) 640 | -10/Materials | Entered Mines 642 | -10/Mines | Met a Derelict bent on vengeance 659 | -10/Mines | Received a Rocket Launcher from a helpful Derelict 716 | -10/Mines | Learned location of Zion (-7) 752 | -10/Mines | Found a hidden stash of uninstalled traps 814 | -10/Mines | Discovered new exit (range 15) 837 | -10/Mines | Entered Materials 837 | -9/Materials | Evolved 2 slots: Propulsion x2 1087 | -9/Materials | Build established: Scavenger-Mutant 1143 | -9/Materials | Lost 7 parts (1p4n2w) 1188 | -9/Materials | Core integrity fell below 50% 1404 | -9/Materials | Build established: Mutant 1581 | -9/Materials | Self-destructed Last Messages --------------- U-05 Engineer builds a Wall. The unstable cave ceiling collapses. K-01 Serf collects debris. The unstable cave ceiling collapses. Rocket Launcher destroyed. U-05 Engineer lays Concrete. K-01 Serf collects debris. U-05 Engineer builds a Wall. The unstable cave ceiling collapses. K-01 Serf collects debris. U-05 Engineer lays Concrete. K-01 Serf collects debris. U-05 Engineer builds a Wall. K-01 Serf collects debris. U-05 Engineer lays Concrete. K-01 Serf collects debris. U-05 Engineer builds a Wall. The unstable cave ceiling collapses. U-05 Engineer lays Concrete. The unstable cave ceiling collapses. Map ----- +----------------------------------------------------+ | ???????????????????????????? | | ???????????????????????????? | | ???????????????????????????? | | ???????????????????????????? | | ???????????????????????????? | | ???????????????????????????? | | ???????????????????????????? | | ???????????????????????????? | | ???????????????????????????? | | ????? ?????????????????????? | | ????? ?????????????????????? | | ????? #????????????????????? | | ????? #???????????????????? | | ??### ???????????????????? | | ??# #?????????????#?????? | | ??# ##????????????# ????? | | ??# # """ #?# # " ??? | | ??# #?# # ??? | | ??## #### #####?# # !! ? | | ??? ??######### # ! ? | | ??? #???# # ? | | ????# #???# #### """?? | | ???# # #???# #??# """?? | | ??### ##???# #??# ""??? | | ??### # ##### #### ??? | | ??#@# ##+#### | | ??# #% | | ??### = | | ??### """ * | | ???## % "Y" !% # | | ???## % % # | | ???## # | | ???## # | | ???## % # | | ????# % ######+###+# | | ????# ###### ## ??? | | ????# # # ## ??? | | ????# # # ## """ ?? | | ????# # # ## """ ?? | | ????# # # ## """ """? | | ????# # # ## ??? | | ????# # # ## "??? | | ????# # # ## ??? | | ????# + # #########??? | | ????# # # #??????????? | | ????# ######+####???????? | | ????# # #???????? | | ###### # """ #???????? | | # # # """"" #???????? | | # # #! """"" #???????? | +----------------------------------------------------+ Best States ------------- Heat Dissipation 39 Energy Generation 14 Energy Capacity 160 Matter Stores 300 Matter Capacity 300 Sight Range 16 Terrain Scan Density 10 Power Shielding 33 Evasion (%) 50 Item Schematics ----------------- None Robot Schematics ------------------ None Fabricated ------------ Nothing Alien Tech Used ----------------- None Achievements -------------- One Hack Too Far Challenges ------------ None Game ------ Seed GlidesysComponentDrive Manual? 0 Play Time 00:49:01 Cumulative 1.6 hours Start 2020.11.02 @ 23:37:26 End 2020.11.03 @ 00:44:22 Sessions 1 Manual Loads 0 Difficulty Rogue Special Mode None Game No. 1 Rogue 1 Adventurer 0 Explorer 0 Win Type - Total 0 Types 0/0/0/0/0/0/0/0/0 Lore% 0 Gallery% 1 Achievement% 0 Wizard Run 0 Options --------- ASCII 0 Keyboard 0 Movement Numpad Keybinds 0 Fullscreen 1 Font 18/SmallcapsGlow Map View 76x50 Tactical HUD 1 Map Filters NONE Filters NONE Steam 1 RUN: ca6ad4c3-6424-4d15-99eb-ec34af889209